bitfinex/quotes_ETHUSD_20220309
["timestamp","ask_amount","ask_price","bid_price","bid_amount"]
[1646798055002,0.00389944,2708.8,2707.9,0.00526045]
[1646798055415,0.00389944,2708.8,2708.1,0.92358]
[1646798055804,1.1699747,2708.6,2708.1,0.92358]
[1646798056206,0.00493928,2708.9,2708.1,0.92358]
[1646798056407,0.18933928,2708.9,2708.1,0.92358]
[1646798056607,0.00493928,2708.9,2708.1,0.92358]
[1646798056907,0.1844,2709.1,2707.9,1.85241045]
[1646798057108,0.1844,2709.1,2707.9,0.00526045]
[1646798057109,0.16925585,2708.8,2707.9,0.00526045]
[1646798057307,11.8044,2708.7,2707.9,7.70549489]
[1646798057506,3.5,2708.6,2707.9,7.70549489]
[1646798057707,12.0004,2708.9,2707.9,7.70549489]
[1646798057912,0.00493929,2709.0,2708.5,0.89428411]
[1646798058110,0.55377176,2709.0,2708.5,0.89428411]
[1646798058365,0.00493929,2709.0,2708.5,0.89428411]
[1646798058763,0.00493929,2709.0,2708.5,1.27468411]
[1646798058964,0.00649846,2709.3,2708.5,4.04403411]
[1646798058965,0.00226954,2709.3,2708.5,4.04403411]
[1646798059166,0.45226954,2709.4,2709.2,0.96726429]
[1646798059663,0.18536,2710.0,2709.2,0.96726429]
[1646798059865,0.1844,2710.2,2709.3,0.445]
[1646798060070,0.1844,2710.4,2709.4,0.3804]
[1646798060268,0.1844,2710.4,2710.2,1.14583924]
[1646798060470,3.5,2711.1,2710.2,1.14583924]
[1646798060471,0.00096,2711.1,2710.2,1.14583924]
[1646798060668,3.50096,2711.2,2710.2,1.14583924]
[1646798060867,3.5,2711.2,2710.0,0.8254]
[1646798061068,3.5,2711.2,2710.2,0.92269]
[1646798061266,3.5,2711.2,2710.2,8.62292444]
[1646798061267,0.00096,2711.1,2710.2,8.62292444]
[1646798061471,0.00096,2711.4,2710.2,8.62292444]
[1646798061671,0.1844,2711.3,2710.2,8.62292444]
[1646798062109,0.1844,2711.3,2710.6,1.02165004]
[1646798062110,1.20403548,2711.3,2710.6,1.02165004]
[1646798062311,3.5,2711.2,2710.5,0.3]
[1646798062712,3.5,2711.2,2710.2,8.92292444]
[1646798063311,3.50776936,2711.2,2710.2,8.92292444]
[1646798063515,3.50776936,2711.2,2710.2,8.00023444]
[1646798063717,0.16873997,2711.1,2710.2,8.00023444]
[1646798064313,0.96803909,2710.3,2710.2,7.70023444]
[1646798064715,3.5,2710.5,2710.2,7.70023444]
[1646798065015,3.5,2710.8,2710.2,7.70023444]
[1646798065415,3.5,2710.8,2709.3,1.84589]
[1646798065416,0.00634841,2710.6,2709.3,1.84589]
[1646798065620,1.84669,2710.2,2708.9,0.3693]
[1646798065859,3.8804,2710.1,2708.9,0.363232]
[1646798066466,0.90822362,2709.6,2708.9,1.33801315]
[1646798066765,1.9178025,2710.2,2708.9,1.33801315]
[1646798066766,0.00634841,2709.8,2708.9,1.33801315]
[1646798067264,0.00634841,2709.8,2708.9,0.97478115]
[1646798067667,0.93732445,2709.9,2708.9,0.92478115]
[1646798067867,0.00634841,2709.6,2708.9,1.84801115]
[1646798068467,0.00634841,2709.6,2708.5,1.84646]
[1646798068667,0.00634841,2709.6,2708.8,0.3]
[1646798068871,3.50096,2709.8,2708.5,2.14646]
[1646798069068,0.00665829,2709.5,2708.5,2.14646]
[1646798069270,0.00601979,2709.8,2708.5,0.6804]
[1646798069600,0.00601979,2709.8,2709.0,1.11564432]
[1646798069899,0.93732445,2709.9,2709.0,1.11564432]
[1646798070500,0.00096,2710.3,2709.2,1.30353]
[1646798070702,2.9759,2710.4,2709.2,1.30353]
[1646798070703,2.9759,2710.4,2709.2,1.60353]
[1646798070904,0.00096,2710.5,2709.2,1.60353]
[1646798070905,0.00096,2710.6,2709.4,0.3804]
[1646798071102,0.5514429,2711.1,2709.6,0.3804]
[1646798071103,0.00096,2711.1,2709.6,0.3804]
[1646798071301,2.5,2710.5,2709.7,0.3804]
[1646798071503,2.5,2710.5,2709.7,0.92277]
[1646798071504,1.23455384,2710.4,2709.7,0.92277]
[1646798072502,0.1346,2710.4,2709.8,1.30319]
[1646798072705,0.5,2710.1,2709.8,0.92279]
[1646798073104,0.45,2710.1,2709.6,2.14553]
[1646798073560,0.45,2710.1,2709.9,0.3804]
[1646798073757,0.45,2710.1,2709.8,1.01636514]
[1646798074159,0.4576264,2710.1,2709.8,1.01636514]
[1646798074363,0.00579548,2710.4,2709.9,0.3804]
[1646798074559,0.00579548,2710.4,2709.9,0.8254]
[1646798075159,0.00096,2711.1,2709.9,0.8254]
[1646798075361,1.1549274,2711.0,2710.5,1.02721085]
[1646798075659,0.1346,2711.4,2710.5,2.33025085]
[1646798075861,0.1346,2711.4,2710.6,0.3804]
[1646798076064,0.00096,2711.7,2710.6,0.3804]
[1646798076259,0.13526,2711.8,2710.6,0.3804]
[1646798076461,1.1598423,2711.4,2710.6,0.3804]
[1646798076659,1.1598423,2711.4,2710.8,1.84466]
[1646798076860,0.13526,2711.8,2710.8,1.84466]
[1646798077108,0.13526,2711.8,2710.9,7.69563029]
[1646798077109,0.1343,2711.8,2710.9,7.69563029]
[1646798077308,0.1343,2711.8,2710.9,7.58321849]
[1646798077708,0.29483746,2711.9,2710.9,7.58321849]
[1646798078913,0.29598131,2711.9,2710.9,7.58321849]
[1646798079113,0.0071498,2711.7,2710.9,7.58321849]
[1646798079513,0.9567507,2711.5,2710.9,7.58321849]
[1646798080515,0.9567507,2711.5,2711.0,0.00497008]
[1646798081177,0.04518495,2711.3,2711.0,0.00497008]
[1646798083886,0.04518495,2711.3,2711.0,3.15224008]
[1646798084285,0.04518495,2711.3,2711.0,2.77184008]
[1646798084485,0.04518495,2711.3,2711.2,0.99363396]
[1646798085212,0.04518495,2711.3,2711.0,3.07184008]
[1646798085411,0.04518495,2711.3,2711.0,0.00497008]
[1646798085609,0.05111374,2711.4,2711.0,0.00497008]
[1646798085610,0.00707832,2711.4,2711.0,0.00497008]
[1646798085810,0.00188654,2711.2,2711.0,0.00497008]
[1646798086213,0.00188654,2711.2,2711.1,0.98181894]
[1646798086415,0.00188654,2711.2,2711.1,1.36221894]
[1646798086612,0.00188654,2711.2,2711.1,8.45274164]
[1646798087214,0.0071498,2711.4,2711.3,1.84446]
[1646798087414,0.0071498,2711.4,2711.3,6.16986]
[1646798087714,0.0054333,2711.7,2711.4,0.3804]
[1646798087915,0.0054333,2711.7,2711.6,0.3804]
[1646798088114,0.99860672,2712.6,2711.8,0.92205]
[1646798088375,0.99860672,2712.6,2712.0,0.3]
[1646798088573,0.99860672,2712.6,2712.0,1.84417]
[1646798088870,0.99860672,2712.6,2712.0,2.14417]
[1646798089270,0.99860672,2712.6,2712.1,0.92209]
[1646798089473,0.99860672,2712.6,2712.0,2.14417]
[1646798089871,0.1351,2713.0,2712.0,2.14417]
[1646798090071,0.1351,2713.0,2712.0,0.3]
[1646798090072,0.3804,2712.9,2712.0,0.3]
[1646798090271,0.3804,2712.7,2711.3,0.3804]
[1646798090471,0.3804,2712.7,2711.5,1.84464]
[1646798090472,0.3804,2712.5,2711.5,1.84464]
[1646798090671,3.45656773,2712.6,2711.6,0.00470818]
[1646798090672,0.00173276,2711.7,2711.6,0.00470818]
[1646798091075,17.12,2711.6,2711.1,6.35262235]
[1646798091273,5.5,2711.6,2711.1,6.35262235]
[1646798091677,0.16884302,2711.5,2711.1,6.35262235]
[1646798091874,0.3804,2711.4,2710.2,3.87393]
[1646798092110,4.56628142,2711.5,2710.2,3.79187383]
[1646798092111,0.3804,2711.2,2710.2,3.79187383]
[1646798092309,0.16884302,2711.3,2710.2,3.79187383]
[1646798092508,0.3804,2711.4,2710.2,3.74187383]
[1646798092708,0.3804,2711.4,2710.3,0.1844]
[1646798093108,1.20044423,2711.0,2710.2,3.74187383]
[1646798093511,0.00207839,2711.1,2710.2,3.74187383]
[1646798093914,0.00207839,2711.1,2710.2,4.04187383]
[1646798094113,0.00207839,2711.1,2710.4,0.92279]
[1646798094415,0.93349501,2711.5,2710.4,0.92279]
[1646798094618,0.00636344,2710.9,2710.6,0.96672687]
[1646798094814,0.00636344,2710.9,2710.5,0.30724158]
[1646798095015,0.00636344,2710.9,2710.5,0.00724158]
[1646798095214,0.00636344,2710.9,2710.5,2.03695158]
[1646798095415,2.9251,2711.9,2710.6,0.8254]
[1646798095416,0.00096,2711.8,2710.6,0.8254]
[1646798095614,0.00096,2711.8,2710.9,0.92242]
[1646798095871,0.00229292,2711.0,2710.9,1.22242]
[1646798096262,0.00229292,2711.0,2710.9,2.35875112]
[1646798096662,0.00178341,2711.3,2710.9,2.35875112]
[1646798097066,0.00229289,2711.2,2710.9,2.35875112]
[1646798097763,0.00178341,2711.3,2710.9,2.35875112]
[1646798098264,0.00407628,2711.3,2710.9,2.35875112]
[1646798098869,0.00407628,2711.3,2710.9,3.28125112]
[1646798099069,0.00178341,2711.3,2710.9,3.72625112]
[1646798099369,0.08878601,2712.1,2710.9,3.72625112]
[1646798099609,0.00636344,2711.4,2710.9,2.80375112]
[1646798100404,1.46150039,2712.1,2710.9,2.80375112]
[1646798100605,0.00636344,2711.4,2710.9,2.80375112]
[1646798100803,0.00185459,2711.2,2710.9,2.80375112]
[1646798101205,0.00185459,2711.2,2710.9,0.3]
[1646798101408,0.00185459,2711.2,2711.0,1.11460965]
[1646798102907,0.00185459,2711.2,2711.0,1.85960965]
[1646798103111,0.00381768,2711.6,2711.1,3.0]
[1646798103376,0.00381768,2711.6,2711.2,1.0098]
[1646798103569,0.00381768,2711.6,2711.3,1.3026]
[1646798103773,0.00381768,2711.6,2711.4,2.28951]
[1646798103969,0.00096,2712.2,2711.4,2.28951]
[1646798104172,0.00096,2712.7,2711.4,2.58951]
[1646798104372,0.00096,2712.7,2711.5,0.3804]
[1646798104572,0.01815355,2714.2,2711.9,0.3804]
[1646798104776,0.006068,2714.2,2712.5,0.6804]
[1646798104972,0.006068,2714.2,2712.7,0.3804]
[1646798105173,0.006068,2714.2,2712.9,0.3804]
[1646798105371,0.006068,2714.2,2713.0,0.445]
[1646798105570,0.006068,2714.2,2712.9,0.92159]
[1646798105571,0.006068,2714.2,2712.6,0.445]
[1646798105773,0.3804,2714.1,2712.8,1.84318]
[1646798106174,0.91913352,2713.3,2712.8,1.84318]
[1646798106772,0.91913352,2713.3,2712.7,1.84386]
[1646798106973,1.29953352,2713.3,2712.7,1.84386]
[1646798107215,0.3804,2713.3,2712.8,5.90413956]
[1646798107421,12.16885325,2713.3,2712.8,5.90413956]
[1646798107618,0.16845325,2713.3,2712.8,5.90413956]
[1646798108018,0.16845325,2713.6,2712.8,5.90413956]
[1646798108218,1.11029883,2713.3,2712.8,5.90413956]
[1646798108619,0.00596576,2713.3,2712.8,5.90413956]
[1646798109219,0.38136,2714.1,2712.8,5.90413956]
[1646798109419,0.00596576,2713.3,2712.8,5.90413956]
[1646798109823,0.93349075,2713.1,2712.8,5.90413956]
[1646798110225,0.00596576,2713.3,2712.8,5.90413956]
[1646798110625,0.00217049,2713.2,2713.0,0.00469155]
[1646798112066,0.46431845,2713.5,2713.0,0.00469155]
[1646798113067,0.46431845,2713.5,2713.0,5.90871016]
[1646798113472,0.46431845,2713.5,2713.0,6.20871016]
[1646798113671,0.36431845,2713.5,2713.0,6.20871016]
[1646798114072,1.28642845,2713.5,2713.0,6.20871016]
[1646798114471,0.5,2713.1,2713.0,5.90871016]
[1646798115211,0.91073299,2713.5,2713.0,5.90871016]
[1646798115408,0.00567424,2713.3,2713.0,5.90871016]
[1646798116012,0.00567424,2713.3,2713.0,6.20871016]
[1646798116209,0.38136,2714.0,2713.0,6.20871016]
[1646798116408,0.0020523,2713.4,2713.0,6.20871016]
[1646798116610,0.00772654,2713.4,2713.0,6.20871016]
[1646798117610,0.0020523,2713.4,2713.0,6.20871016]
[1646798119076,0.0020523,2713.4,2713.0,6.21279146]
[1646798121675,0.0020523,2713.4,2713.0,5.91279146]
[1646798122707,0.0020523,2713.4,2713.3,1.06667291]
[1646798123510,0.0020523,2713.4,2713.2,0.3]
[1646798123711,0.0020523,2713.4,2713.0,7.13465146]
[1646798124113,0.0020523,2713.4,2713.0,6.19034027]
[1646798124311,0.0020523,2713.4,2713.0,4.30171789]
[1646798124509,0.0020523,2713.4,2713.0,2.41309551]
[1646798124711,0.0020523,2713.4,2713.1,1.37133038]
[1646798124911,0.0020523,2713.4,2713.1,1.61874196]
[1646798125115,0.0020523,2713.4,2713.2,1.1911755]
[1646798125311,0.0020523,2713.4,2713.2,1.5715755]
[1646798125512,0.0020523,2713.4,2713.2,1.1911755]
[1646798126163,0.00706815,2713.4,2713.2,1.1911755]
[1646798127159,0.00706815,2713.4,2713.2,2.07230728]
[1646798127762,0.00706815,2713.4,2713.2,1.1911755]
[1646798130011,0.03414909,2713.3,2713.2,1.1911755]
[1646798130210,0.03414909,2713.3,2713.2,6.85360867]
[1646798130610,0.03983546,2713.3,2713.2,6.85360867]
[1646798131310,0.03983546,2713.3,2713.2,3.07636391]
[1646798131511,0.03983546,2713.3,2713.2,1.18774153]
[1646798131811,0.03983546,2713.3,2713.2,0.24343034]
[1646798132213,0.03983546,2713.3,2712.9,0.22519062]
[1646798132413,0.03983546,2713.3,2712.8,0.3]
[1646798132614,0.03983546,2713.3,2712.5,0.3804]
[1646798132814,0.03983546,2713.3,2712.8,1.16778098]
[1646798133014,0.03983546,2713.3,2712.8,0.92188]
[1646798133465,0.0455097,2713.3,2712.8,1.60228]
[1646798134261,0.03983546,2713.3,2712.8,1.60228]
[1646798134464,0.03983546,2713.3,2712.8,2.71587516]
[1646798134662,0.0455097,2713.3,2712.8,2.71587516]
[1646798134862,0.0455097,2713.3,2712.8,2.41587516]
[1646798135464,0.03983546,2713.3,2712.8,2.41587516]
[1646798135868,0.0455097,2713.3,2712.8,2.41587516]
[1646798136063,0.0455097,2713.3,2712.8,2.71587516]
[1646798136267,0.0455097,2713.3,2712.9,0.0039472]
[1646798136467,0.0455097,2713.3,2713.0,3.14558]
[1646798136967,0.0455097,2713.3,2713.0,2.14348]
[1646798136968,0.03983546,2713.3,2713.0,2.14348]
[1646798137209,0.03983546,2713.3,2713.0,8.75045814]
[1646798138107,0.03438269,2713.3,2713.2,7.55071521]
[1646798140611,0.00266177,2713.8,2713.2,11.05071521]
[1646798140872,0.00443673,2713.5,2713.4,0.92169]
[1646798141071,0.00443673,2713.5,2713.4,0.3]
[1646798141475,0.00443673,2713.5,2713.2,7.55071521]
[1646798141669,0.011904,2714.5,2713.2,7.55071521]
[1646798141872,0.3804,2714.3,2713.2,7.55071521]
[1646798142072,0.011904,2714.5,2713.2,7.99571521]
[1646798142271,0.00175213,2713.7,2713.4,0.3804]
[1646798142471,0.00105118,2714.0,2713.7,0.00350425]
[1646798143476,0.00175213,2713.8,2713.7,0.00350425]
[1646798144079,0.00175213,2713.8,2713.7,7.55421946]
[1646798144276,0.011904,2714.5,2713.7,7.55421946]
[1646798144476,0.94238917,2714.0,2713.7,7.85421946]
[1646798146308,0.94238917,2714.0,2713.8,6.57724507]
[1646798146508,0.00462004,2713.9,2713.8,6.39038439]
[1646798146712,0.00462004,2713.9,2713.8,5.90352371]
[1646798146908,0.00313323,2714.4,2713.8,5.41666303]
[1646798147109,0.00522256,2714.1,2713.8,5.41666303]
[1646798147509,0.00522256,2714.1,2713.8,5.60801201]
[1646798147710,0.00522256,2714.1,2713.8,4.87772099]
[1646798147911,0.00522256,2714.1,2713.8,4.39086031]
[1646798148109,0.01421776,2714.7,2713.8,4.39086031]
[1646798148562,0.96851479,2714.2,2713.8,3.66056929]
[1646798148760,0.96851479,2714.2,2713.8,3.17370861]
[1646798148962,0.01421776,2714.7,2713.8,2.68684793]
[1646798149365,0.00442585,2714.3,2713.8,2.68684793]
[1646798149562,0.00442585,2714.3,2713.9,1.84312]
[1646798150162,0.00442585,2714.3,2713.8,2.68684793]
[1646798150163,2.00442585,2714.3,2713.8,0.3804]
[1646798150362,2.0,2714.3,2713.7,0.00350425]
[1646798150563,1.95,2714.3,2713.7,0.00350425]
[1646798150764,0.00412488,2714.0,2713.7,0.00350425]
[1646798151164,0.00412488,2714.0,2713.7,0.14170422]
[1646798151364,0.01517776,2714.7,2714.1,3.5]
[1646798151566,0.01517776,2714.7,2714.2,3.8804]
[1646798151567,0.01421776,2714.7,2714.2,3.8804]
[1646798151764,0.01421776,2714.7,2714.2,0.8254]
[1646798151968,0.00265524,2714.4,2714.2,0.8254]
[1646798152418,7.86e-05,2715.1,2714.4,5.8804]
[1646798152616,0.0031808,2715.6,2715.0,0.39273986]
[1646798152815,0.1141772,2717.0,2715.5,0.01230398]
[1646798152816,0.0107428,2716.6,2715.5,0.01230398]
[1646798153014,0.0107428,2716.6,2716.2,1.01293757]
[1646798153217,0.0107428,2716.6,2716.3,0.36059997]
[1646798153418,0.0214856,2716.7,2716.4,6.73440188]
[1646798153618,0.1141772,2717.0,2716.8,0.2224]
[1646798153619,0.02577312,2716.9,2716.8,0.2224]
[1646798153819,0.0190585,2717.3,2716.8,0.2224]
[1646798153820,87.5692507,2718.4,2717.2,0.2224]
[1646798154021,87.5692507,2718.4,2717.4,0.2224]
[1646798154022,87.74759426,2718.4,2717.4,0.2224]
[1646798154219,87.74759426,2718.4,2717.5,1.36483]
[1646798154220,0.04035806,2718.1,2717.5,1.36483]
[1646798154621,87.89890802,2718.4,2718.1,0.97729895]
[1646798154817,87.89890802,2718.4,2718.2,0.345]
[1646798154818,87.79890802,2718.4,2718.2,0.345]
[1646798155216,87.13280802,2718.4,2718.2,0.345]
[1646798155418,79.66230802,2718.4,2718.2,0.345]
[1646798155621,61.13010802,2718.4,2718.2,0.345]
[1646798155862,61.13010802,2718.4,2717.9,2.0]
[1646798156065,61.13010802,2718.4,2717.7,11.03]
[1646798156463,61.13010802,2718.4,2717.7,11.475]
[1646798156664,61.13010802,2718.4,2717.7,7.54150326]
[1646798156665,3.5,2718.3,2717.7,7.54150326]
[1646798157068,3.82075278,2718.3,2717.7,7.54150326]
[1646798157270,3.83436558,2718.3,2717.7,7.54150326]
[1646798157665,4.75452558,2718.3,2717.7,7.54150326]
[1646798157867,3.05452558,2718.3,2717.8,2.5]
[1646798158067,3.05452558,2718.3,2716.7,0.3682]
[1646798158269,5.1428622,2718.3,2716.1,6.5766]
[1646798158470,5.1428622,2718.3,2715.9,0.445]
[1646798158471,4.14757046,2718.3,2715.9,0.445]
[1646798158669,4.14757046,2718.3,2716.0,1.17393373]
[1646798158670,0.92055,2718.1,2716.0,1.17393373]
[1646798158871,2.7617125,2717.9,2716.3,0.00666539]
[1646798159069,3.50096,2717.8,2716.3,0.00666539]
[1646798159269,3.50096,2717.8,2714.9,0.445]
[1646798159270,0.01245201,2716.9,2714.9,0.445]
[1646798159473,2.96245994,2715.0,2713.7,0.55681327]
[1646798159741,0.92144,2714.5,2713.8,3.5]
[1646798159931,0.00096,2715.0,2713.7,0.00350425]
[1646798159932,2.96245994,2714.0,2713.7,0.00350425]
[1646798160226,0.32536894,2715.0,2714.2,2.41251567]
[1646798160227,0.9214527,2714.7,2714.2,2.41251567]
[1646798160826,2.96245994,2714.3,2714.2,2.41251567]
[1646798161027,0.9214527,2714.7,2714.2,2.41251567]
[1646798161028,1.84296,2714.5,2714.2,2.41251567]
[1646798161227,0.9214527,2714.7,2714.2,2.32010767]
[1646798161427,1.8428876,2715.0,2714.2,2.32010767]
[1646798161428,2.96341994,2715.0,2714.2,2.32010767]
[1646798161627,2.96245994,2715.0,2714.2,2.32010767]
[1646798161827,0.0199584,2715.2,2714.2,2.32010767]
[1646798162031,2.96245994,2715.0,2714.2,2.32010767]
[1646798162227,1.36617,2715.1,2714.2,2.32010767]
[1646798162228,2.96245994,2714.9,2714.2,2.32010767]
[1646798162430,0.445,2715.0,2714.2,2.30790871]
[1646798162626,0.00441403,2714.5,2714.2,2.30790871]
[1646798163228,1.35437783,2714.3,2714.2,2.30790871]
[1646798163471,1.79937783,2714.3,2714.2,2.30790871]
[1646798164074,1.79937783,2714.3,2714.2,1.94805871]
[1646798164473,1.35437783,2714.3,2714.2,1.94805871]
[1646798164877,2.38416209,2714.3,2714.2,1.94805871]
[1646798166078,1.35437783,2714.3,2714.2,1.94925871]
[1646798166878,1.35437783,2714.3,2714.2,1.93792871]
[1646798167128,2.22925408,2714.3,2714.2,1.93672871]
[1646798168533,1.35437783,2714.3,2714.2,1.93672871]
[1646798170437,1.35968669,2714.3,2714.2,1.93672871]
[1646798171259,1.35968669,2714.3,2714.2,1.95267135]
[1646798172962,0.43662865,2714.2,2714.1,0.00734666]
[1646798173160,0.43662865,2714.2,2713.7,0.00350425]
[1646798173361,3.93662865,2714.2,2713.7,0.00350425]
[1646798173565,1.35437783,2713.8,2713.7,0.00350425]
[1646798174263,0.43662865,2714.2,2713.7,0.00350425]
[1646798174463,1.79100648,2714.2,2713.7,0.00350425]
[1646798174711,0.00153315,2714.0,2713.7,0.00350425]
[1646798175711,1.35248266,2714.0,2713.7,0.00350425]
[1646798175911,0.43662865,2714.2,2713.7,0.0108585]
[1646798175912,0.38466074,2714.1,2713.7,0.0108585]
[1646798176113,1.35248266,2713.8,2713.7,0.0108585]
[1646798176312,0.3804,2713.9,2713.7,0.0108585]
[1646798176514,1.35248266,2714.0,2713.7,0.0108585]
[1646798176715,1.35248266,2713.8,2713.7,0.0108585]
[1646798176913,1.35248266,2713.8,2713.7,0.00350425]
[1646798177119,0.3804,2714.0,2713.7,0.00350425]
[1646798177318,2.71609058,2714.2,2713.7,0.00350425]
[1646798177319,1.79441058,2714.2,2713.7,0.00350425]
[1646798177519,0.44192792,2714.2,2713.7,0.00350425]
[1646798177820,1.35248266,2713.8,2713.7,0.00350425]
[1646798178770,1.65248266,2713.8,2713.7,4.25e-06]
[1646798178969,2.09748266,2713.8,2713.7,4.25e-06]
[1646798179872,1.79748266,2713.8,2713.7,4.25e-06]
[1646798180270,1.35248266,2713.8,2713.7,4.25e-06]
[1646798180472,1.35248266,2713.8,2713.7,0.00586619]
[1646798180473,1.35525469,2713.8,2713.7,0.00586619]
[1646798181974,2.43846636,2713.8,2713.7,6.619e-05]
[1646798182215,2.43846636,2713.8,2713.6,0.0002127]
[1646798182216,3.0,2713.7,2713.6,0.0002127]
[1646798182414,6.50096,2713.7,2713.6,0.0002127]
[1646798182620,4.89203929,2713.7,2713.6,0.00735079]
[1646798182917,1.39107929,2713.7,2713.6,0.00735079]
[1646798183119,4.89107929,2713.7,2713.6,0.00735079]
[1646798183315,0.9219,2713.5,2712.1,1.84355]
[1646798183516,1.35248266,2712.9,2712.2,0.1842]
[1646798184021,7.1969,2713.4,2712.2,0.1842]
[1646798184022,1.73288266,2712.7,2712.2,0.1842]
[1646798184217,1.35248266,2712.3,2712.0,0.8822561]
[1646798184417,1.35248266,2712.2,2712.0,0.8822561]
[1646798184618,0.3804,2712.7,2712.0,0.8822561]
[1646798184920,3.5,2713.1,2712.0,0.8822561]
[1646798184921,0.3804,2713.0,2712.0,0.8822561]
[1646798185117,3.50096,2713.1,2712.0,0.8822561]
[1646798185118,1.35248266,2713.1,2712.0,0.8822561]
[1646798185323,3.5,2713.0,2712.5,0.89154721]
[1646798185720,3.5,2713.0,2712.1,0.1843]
[1646798185721,7.0,2713.0,2712.1,0.1843]
[1646798185985,1.35248266,2712.6,2712.4,0.00734375]
[1646798186185,3.31626122,2713.0,2712.4,0.00734375]
[1646798186785,3.31626122,2713.0,2712.7,0.86877733]
[1646798186986,3.31626122,2713.0,2712.4,0.00734375]
[1646798187394,1.35248266,2712.7,2711.9,2.77076093]
[1646798187595,1.35248266,2712.7,2712.0,1.50839771]
[1646798187994,3.50213265,2713.3,2712.3,1.04430378]
[1646798188204,3.50117265,2713.3,2712.3,1.04430378]
[1646798188400,1.35248266,2712.5,2712.3,1.04430378]
[1646798188595,1.35248266,2712.5,2711.9,1.84371]
[1646798188796,1.35248266,2713.1,2711.9,1.84371]
[1646798188997,1.35248266,2713.1,2712.3,1.84347]
[1646798189195,1.35344266,2713.1,2712.3,1.74347]
[1646798189395,1.35248266,2712.6,2712.3,1.74347]
[1646798189625,0.00119682,2713.3,2712.5,0.90323798]
[1646798189626,1.35248266,2713.1,2712.5,0.90323798]
[1646798189815,1.35248266,2713.1,2712.3,1.74347]
[1646798190018,1.35248266,2712.5,2712.1,0.1842]
[1646798190215,1.35248266,2712.5,2711.8,0.1842]
[1646798190416,1.35248266,2712.5,2711.9,1.50841009]
[1646798190818,0.00096,2713.0,2712.7,1.06098164]
[1646798191123,0.3804,2713.1,2712.7,1.06098164]
[1646798191320,0.00307015,2713.2,2712.7,1.06098164]
[1646798193019,0.38347015,2713.2,2712.7,1.01098164]
[1646798193221,0.00307015,2713.2,2712.7,1.01098164]
[1646798193467,0.00307015,2713.2,2712.7,4.01098164]
[1646798196075,0.00307015,2713.2,2712.9,0.00514449]
[1646798197340,0.445,2713.1,2712.9,0.00514449]
[1646798197937,0.745,2713.1,2712.9,0.00514449]
[1646798199439,0.745,2713.1,2711.8,0.1842]
[1646798199440,0.3804,2712.9,2711.8,0.1842]
[1646798199640,1.1254,2712.9,2711.8,0.1842]
[1646798199842,0.3804,2712.3,2711.8,0.1842]
[1646798200045,0.3804,2712.4,2711.8,0.1842]
[1646798200245,0.6804,2712.4,2711.8,0.1842]
[1646798200446,0.3,2712.4,2711.8,0.1842]
[1646798200641,3.462,2712.4,2711.8,0.1842]
[1646798201064,0.3804,2712.3,2711.8,0.1842]
[1646798201267,0.3804,2712.3,2711.4,1.15472022]
[1646798201972,0.3804,2712.3,2710.6,0.63745778]
[1646798202269,0.3804,2712.3,2710.7,1.50898808]
[1646798202270,0.3804,2712.0,2710.7,1.50898808]
[1646798202473,0.3804,2711.8,2710.8,1.50898808]
[1646798202675,0.3804,2711.6,2710.7,0.04206333]
[1646798202871,0.1,2711.9,2710.9,0.04092649]
[1646798202872,0.3804,2711.4,2710.9,0.04092649]
[1646798203069,0.3804,2711.4,2710.7,1.22472853]
[1646798203270,0.3804,2711.4,2710.1,0.1464]
[1646798203271,3.2344,2711.3,2710.9,0.04092649]
[1646798203469,3.5,2711.2,2710.8,0.04149491]
[1646798203671,4.3254,2711.2,2710.2,0.04490545]
[1646798203869,4.3254,2711.2,2710.3,1.50927406]
[1646798204271,5.48812216,2711.2,2710.4,0.0437686]
[1646798204471,4.3254,2711.2,2710.5,1.50927406]
[1646798204717,1.30306,2711.0,2710.5,1.50927406]
[1646798204916,4.3254,2710.9,2710.6,0.04263176]
[1646798205320,4.3254,2710.9,2710.1,0.04547387]
[1646798205521,0.3804,2710.7,2710.2,1.50946779]
[1646798205720,3.8804,2710.7,2709.2,1.30322]
[1646798205922,0.92286,2710.4,2709.3,1.509489]
[1646798206120,2.33358506,2710.3,2709.3,1.509489]
[1646798206523,3.8804,2710.3,2709.3,1.509489]
[1646798206726,1.94571,2710.8,2709.7,3.0]
[1646798206921,9.35671,2711.6,2709.4,5.5]
[1646798206922,9.35671,2711.6,2709.8,4.509489]
[1646798207122,1.30285,2711.7,2710.2,0.3804]
[1646798207322,3.50096,2711.6,2710.3,1.52232116]
[1646798207519,4.18733,2712.0,2710.4,1.889889]
[1646798207520,3.60096,2711.9,2710.4,1.889889]
[1646798207720,1.13674328,2711.8,2710.8,1.12704156]
[1646798207920,0.1,2711.7,2710.8,1.12704156]
[1646798208121,2.3425,2712.0,2710.7,0.92235]
[1646798208122,3.6,2711.9,2710.7,0.92235]
[1646798208383,3.6,2711.9,2710.3,2.84478]
[1646798208384,4.52239,2711.9,2711.0,0.00735221]
[1646798208576,0.00096,2711.8,2711.0,0.00735221]
[1646798208776,0.1,2711.7,2711.0,0.02609921]
[1646798209076,0.71327341,2711.8,2711.0,0.02609921]
[1646798209279,0.71327341,2711.8,2711.0,0.018747]
[1646798209280,1.17572086,2711.2,2711.0,0.018747]
[1646798210177,3.5,2711.1,2711.0,0.018747]
[1646798210379,3.8,2711.1,2711.0,4.7e-05]
[1646798210578,3.5,2711.1,2711.0,4.7e-05]
[1646798210778,3.8,2711.1,2711.0,4.7e-05]
[1646798210977,0.3,2711.1,2711.0,4.7e-05]
[1646798211178,0.1,2711.2,2711.0,4.7e-05]
[1646798211376,0.15396351,2711.3,2711.0,4.7e-05]
[1646798211577,0.99080793,2711.1,2711.0,4.7e-05]
[1646798211980,1.29080793,2711.1,2711.0,4.7e-05]
[1646798212820,5.5,2711.0,2710.9,6.254e-05]
[1646798213218,5.5,2711.0,2710.9,0.00010944]
[1646798214020,5.5,2711.0,2709.7,1.50958614]
[1646798214219,1.14092597,2710.8,2709.7,1.50958614]
[1646798214624,1.44092597,2710.8,2709.7,1.50958614]
[1646798214821,2.36371597,2710.8,2709.7,1.50958614]
[1646798215022,2.36371597,2710.8,2709.8,1.50958614]
[1646798215221,2.36371597,2710.8,2709.5,1.50958614]
[1646798215422,2.36371597,2710.8,2709.6,1.50966183]
[1646798215623,2.36371597,2710.8,2709.7,1.50966183]
[1646798215882,2.36371597,2710.8,2709.8,1.50966183]
[1646798215883,2.53173783,2710.8,2709.8,1.50966183]